bitfinex-derivatives/quotes_ETHF0:USTF0_20241004
["timestamp","ask_amount","ask_price","bid_price","bid_amount"]
[1728045210398,0.41934,2385.3,2384.9,3.62719]
[1728045210605,4.25599,2385.7,2384.8,0.25849862]
[1728045210606,4.52,2385.2,2385.0,3.2078]
[1728045210902,4.52,2385.5,2385.0,3.2078]
[1728045211105,4.52,2385.8,2385.0,3.46629862]
[1728045211409,4.52,2385.8,2385.3,3.2078]
[1728045211695,4.52,2385.8,2385.5,0.41929]
[1728045211897,4.52,2385.8,2385.3,3.46629862]
[1728045212099,3.6206,2386.3,2385.3,3.46629862]
[1728045212100,4.52,2386.2,2385.6,3.2078]
[1728045212398,4.52,2386.2,2386.1,0.41919]
[1728045212592,4.52,2386.2,2385.7,1.04817]
[1728045212593,4.52,2386.6,2386.3,0.41916]
[1728045212796,13.56591055,2386.9,2386.3,0.25849862]
[1728045212998,4.52,2386.9,2386.3,0.25849862]
[1728045213193,4.52,2386.9,2386.4,0.41913]
[1728045213400,4.52,2386.9,2386.4,0.25849862]
[1728045213698,4.52,2386.9,2386.7,0.41908]
[1728045213893,0.41907,2386.8,2386.7,0.25849862]
[1728045214291,4.52,2386.9,2386.2,3.2078]
[1728045214493,4.52,2386.9,2386.7,0.41908]
[1728045214698,4.52,2387.3,2386.7,0.25849862]
[1728045214991,9.04591055,2387.5,2386.8,3.2078]
[1728045215197,4.25516,2387.6,2386.7,0.67757862]
[1728045215198,0.41907,2386.8,2386.7,0.25849862]
[1728045215499,4.52,2386.9,2386.7,0.25849862]
[1728045215698,4.52,2386.9,2386.7,0.67756862]
[1728045215998,4.52,2386.9,2386.8,0.41907]
[1728045216202,8.78464203,2387.2,2387.0,0.41902]
[1728045216399,4.52,2387.2,2387.1,0.41902]
[1728045216598,4.52,2387.2,2387.1,0.25849862]
[1728045217106,4.52,2387.2,2386.7,3.2078]
[1728045217107,8.7088,2387.2,2386.7,3.2078]
[1728045217298,4.93907,2386.8,2386.7,3.46629862]
[1728045217699,0.41911,2386.6,2386.0,3.2078]
[1728045217899,0.41909,2386.7,2386.4,0.41913]
[1728045218202,4.93908,2386.8,2386.5,0.41912]
[1728045218396,4.52,2386.8,2386.5,0.25849862]
[1728045218703,4.52,2387.1,2386.5,0.25849862]
[1728045219001,0.41909,2386.7,2386.5,0.25849862]
[1728045219302,0.41911,2386.6,2386.5,0.25849862]
[1728045219607,4.52,2386.7,2386.5,0.25849862]
[1728045219804,4.52,2387.1,2386.5,4.44889862]
[1728045219996,4.52,2386.7,2386.5,0.25849862]
[1728045220198,7.7278,2387.1,2386.5,0.25849862]
[1728045220600,0.41908,2386.8,2386.5,0.67761862]
[1728045220898,4.78126852,2387.2,2386.6,3.2078]
[1728045221098,5.26815086,2387.3,2386.8,0.41906]
[1728045221099,0.41903,2387.1,2386.8,0.41906]
[1728045221300,4.78126852,2387.3,2386.6,3.46629862]
[1728045221600,0.41902,2387.1,2386.6,3.46629862]
[1728045221904,0.41901,2387.2,2386.6,3.46629862]
[1728045222100,0.41904,2387.0,2386.7,0.41908]
[1728045222297,0.41904,2387.0,2386.7,0.25849862]
[1728045222497,4.93907,2386.8,2386.7,0.25849862]
[1728045222694,4.52,2386.8,2386.0,3.2078]
[1728045222900,0.41916,2386.3,2386.0,3.627]
[1728045223196,4.52,2386.4,2386.0,3.46629862]
[1728045223499,4.52,2386.1,2385.7,3.2078]
[1728045223698,4.93925,2385.8,2385.7,0.25849862]
[1728045224203,4.52,2386.1,2385.7,4.44969862]
[1728045224406,3.62696,2386.3,2386.0,0.4192]
[1728045224606,4.52,2386.4,2385.7,0.25849862]
[1728045224902,0.41917,2386.3,2386.0,0.4192]
[1728045225107,4.52,2386.4,2385.7,0.25849862]
[1728045225301,5.56787,2386.4,2385.9,0.41922]
[1728045225511,5.56787,2386.4,2385.7,0.25849862]
[1728045225702,0.41919,2386.2,2385.7,0.25849862]
[1728045225903,0.41917,2386.3,2386.0,0.41921]
[1728045226209,0.41918,2386.2,2385.9,0.41921]
[1728045226401,0.41918,2386.2,2385.9,0.41922]
[1728045226603,4.93915,2386.4,2386.0,4.1912]
[1728045226898,3.2078,2386.6,2385.9,3.46629862]
[1728045227105,0.41917,2386.3,2385.9,3.46629862]
[1728045227295,3.62692,2386.6,2386.3,0.41915]
[1728045227501,4.52,2386.7,2386.4,0.41913]
[1728045227712,0.41911,2386.6,2386.4,0.25849862]
[1728045227900,0.41911,2386.6,2386.4,0.67763862]
[1728045228105,4.52,2386.7,2386.4,0.25849862]
[1728045228301,4.52,2387.1,2386.5,3.2078]
[1728045228606,4.52,2387.1,2386.4,4.44889862]
[1728045228607,4.52,2386.8,2386.4,0.25849862]
[1728045228800,0.41912,2386.5,2386.4,0.25849862]
[1728045229008,0.41912,2386.5,2385.7,0.4176]
[1728045229009,4.52,2386.5,2385.9,3.2078]
[1728045229195,4.93921,2386.0,2385.9,3.46629862]
[1728045229404,4.52,2386.0,2385.6,3.2078]
[1728045229703,4.78126852,2386.8,2385.6,0.25849862]
[1728045229704,4.93926,2385.7,2385.6,0.25849862]
[1728045230096,4.93926,2385.7,2384.9,3.2078]
[1728045230097,0.41933,2385.4,2384.9,3.2078]
[1728045230299,0.41933,2385.4,2384.9,3.46629862]
[1728045230300,4.93933,2385.4,2384.9,3.46629862]
[1728045230613,4.93932,2385.4,2385.0,0.41938]
[1728045230798,5.26815086,2386.3,2384.9,3.46629862]
[1728045230799,4.52,2385.7,2384.9,3.46629862]
[1728045230998,0.41931,2385.5,2385.1,0.41936]
[1728045231198,0.41929,2385.6,2385.2,0.41935]
[1728045231409,4.93927,2385.7,2385.2,0.25849862]
[1728045231611,4.93927,2385.7,2385.3,0.41932]
[1728045231808,1.04808,2386.0,2385.2,0.25849862]
[1728045231809,4.52,2386.0,2385.2,3.46629862]
[1728045231998,4.52,2386.0,2385.5,0.4193]
[1728045232200,4.52,2386.0,2385.2,4.51466862]
[1728045232404,0.4192,2386.1,2385.8,0.41924]
[1728045232603,3.2078,2386.2,2385.5,3.2078]
[1728045232806,3.2078,2386.2,2385.5,3.46629862]
[1728045233208,4.52,2386.1,2385.5,0.25849862]
[1728045233409,4.52,2385.7,2385.5,0.25849862]
[1728045234012,4.52,2386.0,2385.5,0.25849862]
[1728045235011,0.41923,2385.9,2385.6,0.41927]
[1728045235203,0.41923,2385.9,2385.5,0.25849862]
[1728045235204,4.52,2386.0,2385.5,0.25849862]
[1728045235608,0.41927,2385.7,2385.5,0.67778862]
[1728045235804,4.93928,2385.6,2385.5,0.25849862]
[1728045236211,4.93928,2385.6,2385.1,3.62716]
[1728045236212,0.41933,2385.4,2385.1,3.62716]
[1728045236406,1.048,2386.1,2385.2,5.24039]
[1728045236610,0.41926,2385.7,2385.3,0.41932]
[1728045236813,0.41929,2385.6,2385.3,0.41932]
[1728045237008,4.52,2385.8,2385.3,0.25849862]
[1728045237203,4.93932,2385.4,2385.3,0.25849862]
[1728045237406,4.93932,2385.4,2384.8,3.2078]
[1728045237407,0.4194,2384.9,2384.8,3.2078]
[1728045237611,4.52,2385.4,2384.8,3.2078]
[1728045237612,0.41939,2385.0,2384.8,3.46629862]
[1728045237811,4.52,2385.1,2384.8,3.88570862]
[1728045238117,0.4194,2384.9,2384.8,0.25849862]
[1728045239106,5.56845,2385.1,2384.3,3.2078]
[1728045239107,4.25628,2385.0,2384.3,3.2078]
[1728045239308,4.25628,2385.0,2384.3,3.46629862]
[1728045239513,4.52,2385.1,2384.3,4.51506862]
[1728045239711,1.04822,2385.6,2384.9,3.2078]
[1728045239915,0.41934,2385.3,2385.0,0.41939]
[1728045240112,1.04826,2385.5,2385.0,0.41937]
[1728045240311,4.52,2385.7,2385.1,0.41936]
[1728045240513,0.41935,2385.2,2385.1,0.25849862]
[1728045240817,3.2078,2385.2,2384.6,3.2078]
[1728045241018,4.52,2385.1,2384.8,3.2078]
[1728045241314,4.52,2385.1,2384.6,0.25849862]
[1728045241315,0.41944,2384.7,2384.6,0.25849862]
[1728045241812,0.41953,2384.3,2384.2,3.2078]
[1728045242012,0.41955,2384.1,2384.0,0.25849862]
[1728045242208,0.41955,2384.1,2384.0,3.46629862]
[1728045242618,0.41955,2384.1,2384.0,0.25849862]
[1728045242917,1.04878,2384.3,2383.2,3.6735]
[1728045243124,1.48222,2384.5,2383.5,3.2078]
[1728045243125,0.41964,2383.6,2383.5,3.2078]
[1728045243323,8.77668,2384.1,2383.5,3.2078]
[1728045243324,1.04902,2383.8,2383.5,3.2078]
[1728045243514,0.41963,2383.6,2383.5,0.25849862]
[1728045243711,0.41966,2383.5,2383.2,3.2078]
[1728045243916,0.41969,2383.3,2383.2,0.25849862]
[1728045244120,4.52,2383.4,2382.9,3.2078]
[1728045244318,0.41974,2383.0,2382.9,0.25849862]
[1728045244515,4.52,2383.1,2382.7,3.85801899]
[1728045244516,0.41976,2382.9,2382.7,3.85801899]
[1728045244825,1.04926,2383.3,2382.7,0.90871761]
[1728045244826,4.52,2382.8,2382.7,0.90871761]
[1728045245012,4.52,2383.1,2382.7,0.90871761]
[1728045245212,3.2078,2383.2,2382.7,4.11651761]
[1728045245415,3.6413,2383.6,2382.8,4.1968]
[1728045245715,0.4335,2383.6,2383.0,3.62753]
[1728045245920,0.4335,2383.6,2383.0,3.46629862]
[1728045246121,4.52,2383.7,2383.0,3.46629862]
[1728045246315,4.52,2383.7,2383.2,0.41969]
[1728045246515,3.2078,2383.9,2383.3,3.2078]
[1728045246710,3.2078,2383.9,2383.5,0.41964]
[1728045246917,4.52,2384.1,2383.5,0.25849862]
[1728045247216,0.9181,2384.3,2383.5,0.25849862]
[1728045247217,4.52,2383.6,2383.5,0.25849862]
[1728045247430,4.93963,2383.6,2383.5,0.25849862]
[1728045247618,4.93963,2383.6,2382.9,3.2078]
[1728045247619,0.41971,2383.2,2382.9,3.2078]
[1728045247817,0.41973,2383.1,2382.9,3.46629862]
[1728045248024,0.41971,2383.2,2382.9,3.46629862]
[1728045248221,4.52,2383.3,2382.9,3.46629862]
[1728045248427,4.52,2383.3,2382.9,0.25849862]
[1728045248428,4.93974,2383.0,2382.9,0.25849862]
[1728045248622,4.52,2383.0,2382.9,0.25849862]
[1728045248821,4.52,2383.0,2382.7,3.2078]
[1728045249014,4.25695,2383.5,2382.8,4.1968]
[1728045249015,3.2078,2383.5,2382.8,4.1968]
[1728045249219,4.52,2383.4,2382.8,0.25849862]
[1728045249717,0.41973,2383.1,2382.8,0.25849862]
[1728045249918,0.41975,2383.0,2382.8,0.25849862]
[1728045250326,4.52,2383.1,2382.8,0.25849862]
[1728045250531,0.41976,2382.9,2382.8,0.25849862]
[1728045250825,0.4198,2382.7,2382.6,3.2078]
[1728045251039,0.4198,2382.7,2382.0,3.62771]
[1728045251040,0.41984,2382.5,2382.0,3.62771]
[1728045251322,3.2078,2382.7,2382.0,3.2078]
[1728045251523,3.2078,2382.7,2382.0,3.46629862]
[1728045251730,0.41982,2382.6,2382.1,0.41988]
[1728045251929,3.2078,2382.7,2382.0,3.88620862]
[1728045251930,4.93985,2382.4,2382.0,3.88620862]
[1728045252229,4.52,2382.4,2382.0,3.46629862]
[1728045252525,3.2078,2382.7,2382.0,0.25849862]
[1728045252526,4.52,2382.1,2382.0,0.25849862]
[1728045252723,4.9399,2382.1,2382.0,0.25849862]
[1728045253120,0.41987,2382.0,2381.7,3.2078]
[1728045253319,4.93991,2381.8,2381.7,0.25849862]
[1728045253526,4.52,2381.8,2381.7,0.25849862]
[1728045253825,17.9262,2381.8,2381.5,0.64776468]
[1728045254023,17.9262,2381.8,2381.4,0.64748815]
[1728045254024,0.41996,2381.5,2381.4,0.64748815]
[1728045254325,4.52,2381.6,2381.4,0.90598677]
[1728045254931,4.966,2381.7,2381.4,0.90598677]
[1728045255131,4.52,2382.0,2381.5,4.1992]
[1728045255425,4.52,2382.0,2381.5,0.25849862]
[1728045255627,4.52,2381.6,2381.5,0.25849862]
[1728045255927,4.52,2381.6,2381.4,3.85528815]
[1728045255928,4.52,2381.6,2381.4,0.64748815]
[1728045256223,4.52,2381.6,2381.4,0.90598677]
[1728045256625,4.52,2381.9,2381.5,4.1992]
[1728045256827,4.52,2382.2,2381.6,3.2078]
[1728045257228,4.52,2381.9,2381.6,0.25849862]
[1728045257730,4.9399,2381.9,2381.6,0.25849862]
[1728045258035,4.52,2381.9,2381.2,3.2078]
[1728045258331,4.52,2381.5,2381.3,3.2078]
[1728045258534,0.42004,2381.1,2380.5,3.2078]
[1728045258718,1.05,2381.3,2380.9,3.2078]
[1728045258929,4.52,2381.0,2380.9,0.25849862]
[1728045259220,1.50581,2381.6,2380.9,0.25849862]
[1728045259422,4.52,2381.0,2380.9,0.25849862]
[1728045259625,4.94005,2381.0,2380.9,0.25849862]
[1728045259826,4.52,2381.0,2380.9,0.25849862]
[1728045260229,0.4559,2381.6,2380.9,0.25849862]
[1728045260230,0.4559,2381.6,2380.9,7.66629862]
[1728045260436,4.52,2382.0,2381.2,3.2078]
[1728045260635,7.7278,2382.4,2381.8,3.2078]
[1728045260941,4.52,2382.0,2381.3,3.2078]
[1728045261129,4.52,2382.0,2381.6,0.41994]
[1728045261435,7.7278,2382.4,2381.9,3.2078]
[1728045261739,0.9227,2382.8,2381.4,4.1984]
[1728045261740,4.52,2382.1,2381.7,0.41992]
[1728045262040,4.52,2382.1,2381.6,3.2078]
[1728045262233,4.52,2382.1,2381.9,0.41987]
[1728045262436,4.52,2382.1,2381.9,4.45689862]
[1728045262633,4.52,2382.4,2382.0,3.2078]
[1728045262830,4.52,2382.1,2382.0,0.25849862]
[1728045263036,0.41991,2381.8,2381.7,3.2078]
[1728045263239,0.41991,2381.8,2380.1,1.06152906]
[1728045263240,9.04,2381.8,2380.1,1.06152906]
[1728045263453,9.04,2381.8,2379.4,3.18458718]
[1728045263454,4.52,2380.2,2379.4,0.25849862]
[1728045263744,4.52,2379.9,2379.4,0.25849862]
[1728045263937,3.2078,2380.4,2379.4,0.25849862]
[1728045264130,3.2078,2380.4,2379.6,0.4203]
[1728045264131,0.42018,2380.3,2379.6,0.4203]
[1728045264328,0.42018,2380.3,2379.0,1.06152906]
[1728045264329,0.4204,2379.0,2378.9,1.06152906]
[1728045264527,0.42051,2378.4,2378.3,0.25849862]
[1728045264731,7.7278,2378.4,2377.9,1.70113619]
[1728045264933,1.25914158,2379.5,2377.9,0.89810575]
[1728045264934,4.52,2378.0,2377.9,0.89810575]
[1728045265134,2.63038321,2378.0,2377.9,0.89810575]
[1728045265335,4.52,2378.3,2377.9,11.10370575]
[1728045265546,4.52,2378.3,2377.9,0.89810575]
[1728045266135,3.2078,2378.2,2377.9,0.89810575]
[1728045266333,4.52,2378.0,2377.9,0.89810575]
[1728045266541,4.52,2378.0,2377.9,0.63960713]
[1728045266738,14.7256,2378.0,2377.9,0.63960713]
[1728045266931,14.7256,2378.0,2377.8,0.63965082]
[1728045266932,15.14618,2378.0,2377.8,0.63965082]
[1728045267143,7.4134,2377.9,2377.8,0.63965082]
[1728045267646,13.834,2377.9,2377.2,1.83817496]
[1728045267849,4.52,2378.1,2377.2,3.57892264]
[1728045268049,4.52,2378.4,2377.7,3.62843]
[1728045268245,4.52,2378.4,2377.7,4.26932906]
[1728045268445,4.52,2378.4,2377.7,0.25849862]
[1728045268740,0.4784,2379.6,2377.9,4.26932906]
[1728045268741,4.52,2378.7,2377.9,4.26932906]
[1728045269051,4.52,2379.1,2378.3,1.06152906]
[1728045269237,4.52,2379.0,2378.4,1.48202906]
[1728045269738,4.52,2379.0,2378.5,0.42049]
[1728045269946,4.52,2379.1,2378.5,1.06152906]
[1728045270147,4.52,2379.1,2378.5,1.32002768]
[1728045270352,4.52,2379.1,2378.5,0.25849862]
[1728045270649,4.52,2378.7,2378.5,0.25849862]
[1728045271452,4.204,2378.6,2378.4,3.2078]
[1728045271655,0.42049,2378.6,2378.4,3.2078]
[1728045271953,4.204,2378.6,2378.4,3.2078]
[1728045272160,4.94047,2378.7,2378.4,3.46629862]
[1728045272161,4.52,2378.7,2378.4,3.46629862]
[1728045272956,4.52,2378.7,2378.4,0.25849862]
[1728045273261,4.94046,2378.7,2378.4,0.25849862]
[1728045273451,0.42047,2378.6,2378.4,0.25849862]
[1728045273751,4.52,2378.7,2378.4,0.25849862]
[1728045274754,4.52,2378.7,2378.4,7.67029862]
[1728045275055,3.2078,2379.2,2378.5,4.204]
[1728045275056,4.52,2379.0,2378.5,4.204]
[1728045275349,4.52,2379.0,2378.4,3.46629862]
[1728045276250,4.52,2379.0,2378.7,3.2078]
[1728045276449,4.52,2379.4,2378.7,3.2078]
[1728045276651,3.2078,2379.7,2379.0,3.2078]
[1728045276956,4.52,2379.4,2379.0,3.62819]
[1728045277152,4.94033,2379.4,2379.0,3.46629862]
[1728045277349,4.94033,2379.4,2379.0,3.88668862]
[1728045277350,4.52,2379.4,2379.0,3.88668862]
[1728045277553,4.52,2379.4,2379.2,0.42035]
[1728045277754,4.52,2379.4,2379.2,0.42037]
[1728045278063,4.94028,2379.7,2379.3,4.2032]
[1728045278258,4.52,2379.7,2379.3,0.25849862]
[1728045278557,4.52,2379.7,2379.3,3.46629862]
[1728045278761,4.52,2379.4,2379.3,0.25849862]
[1728045278952,4.52,2379.4,2379.3,0.67884862]
[1728045279152,4.52,2379.4,2379.3,0.25849862]
[1728045279353,4.94033,2379.4,2379.3,0.25849862]
[1728045279770,4.52,2379.4,2379.3,0.25849862]
[1728045280455,4.94033,2379.4,2379.3,0.25849862]
[1728045280766,4.94033,2379.4,2378.9,3.62821]
[1728045280767,9.14354,2379.4,2378.9,3.2078]
[1728045281061,4.52,2379.4,2379.0,0.4204]
[1728045281365,4.52,2379.7,2379.2,0.42036]
[1728045281559,4.52,2379.7,2379.1,4.2032]
[1728045281560,4.94029,2379.7,2379.1,0.42037]
[1728045281756,4.52,2379.3,2379.1,0.25849862]
[1728045281969,4.52,2379.3,2379.2,0.42037]
[1728045282168,4.52,2379.6,2379.2,4.62357]
[1728045282367,4.52,2379.6,2379.2,0.42037]
[1728045282565,4.94025,2379.9,2379.4,0.42032]
[1728045282766,4.52,2379.6,2379.2,3.2078]
[1728045283068,4.52,2379.6,2379.3,0.42034]
[1728045283455,4.52,2379.6,2379.4,0.42033]
[1728045283863,4.52,2379.6,2379.2,3.2078]
[1728045284066,4.52,2379.6,2379.2,7.4102]
[1728045284359,4.52,2379.6,2379.4,0.42033]
[1728045284564,4.52,2379.6,2379.5,4.62271]
[1728045284754,4.52,2379.6,2379.3,4.62274]
[1728045284959,3.2078,2380.8,2379.5,3.2078]
[1728045285194,4.52,2380.5,2379.8,3.2078]
[1728045285467,4.52,2380.1,2379.4,3.6909]
[1728045285658,4.94022,2380.1,2379.6,0.42029]
[1728045285868,4.52,2380.1,2379.6,0.42029]
[1728045286056,4.52,2380.4,2379.7,3.2078]
[1728045286259,4.94016,2380.4,2379.8,0.42026]
[1728045286456,4.94016,2380.4,2379.9,0.42023]
[1728045286457,4.52,2380.4,2379.9,0.42023]
[1728045286662,4.94016,2380.4,2379.8,0.42024]
[1728045286862,4.52,2380.4,2379.7,3.6716]
[1728045287060,0.42026,2379.8,2379.4,3.2078]
[1728045287265,4.52,2380.0,2379.4,3.2078]
[1728045287464,0.42025,2379.9,2379.5,0.42031]
[1728045287666,4.94024,2380.0,2379.5,0.42031]
[1728045287858,4.52,2380.0,2379.7,0.42027]
[1728045288061,4.94023,2380.0,2379.4,3.2078]
[1728045288261,4.52,2380.0,2379.7,0.42028]
[1728045288477,0.42026,2379.9,2379.5,0.42031]
[1728045288661,4.94023,2380.0,2379.6,0.42029]
[1728045289068,4.52,2380.0,2379.4,3.2078]
[1728045289370,4.52,2380.0,2379.6,0.42029]
[1728045289578,4.94023,2380.0,2379.6,0.42029]
[1728045289870,0.42029,2379.7,2379.4,3.2078]
[1728045290057,0.42025,2379.9,2379.5,0.42031]
[1728045290262,4.52,2380.0,2379.4,3.2078]
[1728045290477,0.42026,2379.8,2379.4,3.62812]
[1728045290968,4.52,2380.0,2379.4,3.2078]
[1728045291373,0.42031,2379.6,2379.4,3.2078]
[1728045291563,4.52,2380.0,2379.4,3.2078]
[1728045291770,0.42025,2379.9,2379.5,0.42031]
[1728045291965,4.52,2380.0,2379.4,3.2078]
[1728045292165,4.52,2380.0,2379.8,3.2078]
[1728045292365,4.52,2380.0,2379.6,0.4203]
[1728045292863,4.52,2380.3,2379.9,0.42023]
[1728045293073,4.94017,2380.3,2379.9,0.42023]
[1728045293268,4.52,2380.3,2379.8,0.42026]
[1728045293571,4.94018,2380.3,2379.9,0.42024]
[1728045293874,4.52,2380.3,2380.1,0.42019]
[1728045294071,4.52,2380.3,2380.1,4.2016]
[1728045294265,4.52,2380.3,2380.2,0.42019]
[1728045294575,0.42013,2380.6,2380.2,4.62179]
[1728045294766,0.42013,2380.6,2380.2,0.42019]
[1728045294966,4.52,2380.7,2380.4,0.42015]
[1728045295168,4.52,2380.7,2380.0,3.2078]
[1728045295481,4.52,2380.7,2380.4,0.42015]
[1728045295768,4.52,2380.7,2380.3,3.2078]
[1728045295964,3.2078,2380.9,2380.6,0.42011]
[1728045296165,3.2078,2380.9,2380.3,3.2078]
[1728045296360,4.52,2381.0,2380.6,3.2078]
[1728045296568,4.94,2381.3,2380.9,3.62787]
[1728045296768,4.52,2381.3,2381.0,0.42004]
[1728045297075,4.94,2381.3,2380.9,3.62786]
[1728045297268,4.94,2381.3,2380.9,3.2078]
[1728045297269,4.52,2381.3,2380.9,3.2078]
[1728045297579,4.52,2381.7,2381.3,0.41999]
[1728045297876,4.52,2381.7,2381.2,3.2078]
[1728045298074,4.93993,2381.7,2381.2,3.2078]
[1728045298273,4.52,2381.7,2381.3,0.42]
[1728045298569,4.52,2381.7,2381.5,3.62776]
[1728045298781,4.52,2382.0,2381.6,0.41994]
[1728045299474,4.52,2382.0,2381.7,0.41992]
[1728045299774,0.4911,2382.2,2381.8,3.62771]
[1728045299965,1.60982749,2382.6,2381.8,3.2078]
[1728045300169,4.52,2382.7,2382.1,3.2078]
[1728045300364,4.52,2382.7,2382.3,0.41981]
[1728045300571,0.41973,2382.9,2382.4,3.62759]
[1728045300878,4.52,2383.0,2382.4,3.62759]
[1728045300879,4.93971,2383.0,2382.5,0.41978]
[1728045301179,4.93976,2382.7,2382.2,0.41983]
[1728045301474,4.93976,2382.7,2382.1,3.2078]
[1728045301475,4.52,2382.7,2382.1,3.2078]
[1728045301674,4.52,2383.0,2382.7,0.41975]
[1728045301880,4.52,2383.0,2382.7,3.62755]
[1728045302179,0.4587,2383.2,2382.8,4.1968]
[1728045302369,4.52,2383.3,2382.8,0.41973]
[1728045302679,4.93965,2383.3,2382.8,0.41973]
[1728045303075,4.93965,2383.3,2382.6,3.2078]
[1728045303076,4.52,2383.3,2382.6,3.2078]
[1728045303277,4.93971,2383.0,2382.3,3.2078]
[1728045303477,4.52,2382.7,2382.1,3.2078]
[1728045303773,4.52,2382.7,2382.2,0.41984]
[1728045303973,4.52,2382.7,2381.9,0.41988]
[1728045304174,0.41983,2382.3,2381.8,3.2078]
[1728045304387,4.52,2382.4,2381.8,3.2078]
[1728045304575,3.2078,2382.5,2381.8,3.2078]
[1728045304883,3.2078,2382.5,2381.9,0.41988]
[1728045305081,7.7278,2382.7,2381.8,3.2078]
[1728045305778,0.41978,2382.6,2381.9,0.41988]
[1728045305980,0.41977,2382.6,2381.9,0.41988]
[1728045306178,4.52,2382.7,2381.8,3.2078]
[1728045306377,5.38574332,2383.6,2382.4,3.2078]
[1728045306378,1.60982749,2383.1,2382.4,3.2078]
[1728045306575,0.41965,2383.3,2382.7,3.62754]
[1728045306779,0.41964,2383.3,2382.7,3.2078]
[1728045307085,4.52,2383.4,2382.7,3.2078]
[1728045307274,0.41972,2382.9,2382.3,3.62761]
[1728045307475,0.41974,2382.8,2382.3,3.2078]
[1728045307675,0.41971,2383.0,2382.3,3.2078]
[1728045307883,0.41971,2383.0,2382.3,3.62761]
[1728045308079,4.81762749,2383.2,2382.3,3.2078]
[1728045308276,6.12982749,2383.4,2382.3,3.2078]
[1728045308477,0.41966,2383.3,2382.3,3.2078]
[1728045308779,4.52,2383.4,2382.6,3.2078]
[1728045309288,6.12982749,2383.4,2382.6,3.2078]
[1728045309680,4.52,2383.1,2382.3,3.2078]
[1728045310180,4.93969,2383.1,2382.5,0.41978]
[1728045310386,4.81762749,2383.3,2382.3,3.2078]
[1728045310583,0.41971,2383.0,2382.4,0.41979]
[1728045310888,4.93964,2383.4,2382.8,0.41972]
[1728045311379,0.41965,2383.3,2382.8,0.41972]
[1728045311585,4.52,2383.4,2382.6,3.2078]
[1728045311782,4.52,2383.4,2382.3,3.2078]
[1728045311983,0.4197,2383.0,2382.5,0.41978]
[1728045312178,3.2078,2383.3,2382.3,3.2078]
[1728045312179,4.52,2383.1,2382.3,3.2078]
[1728045312380,3.2078,2383.0,2382.3,3.2078]
[1728045312582,4.52,2382.7,2382.3,3.2078]
[1728045313487,4.52,2382.7,2382.3,3.62761]
[1728045313685,4.52,2383.1,2382.5,0.41977]
[1728045313880,4.52,2383.1,2382.3,3.2078]
[1728045314080,4.52,2383.1,2382.5,0.41979]
[1728045314285,0.41966,2383.2,2382.6,0.41976]
[1728045314585,3.6777,2383.7,2382.6,3.2078]
[1728045314586,0.4699,2383.7,2382.6,3.2078]
[1728045314793,0.4699,2383.7,2382.9,3.2078]
[1728045314982,40.8,2384.0,2382.9,3.2078]
[1728045315178,0.41951,2384.1,2383.3,0.41964]
[1728045315485,3.2078,2384.2,2383.5,3.2078]
[1728045315684,0.41951,2384.1,2383.5,3.6274]
[1728045315886,3.2078,2384.2,2383.5,3.2078]
[1728045316188,0.41953,2384.0,2383.5,3.6274]
[1728045316391,0.41957,2383.8,2383.3,0.41963]
[1728045316693,4.52,2384.1,2383.2,3.2078]
[1728045316889,3.2078,2384.2,2383.5,3.2078]
[1728045317190,0.41945,2384.5,2384.0,0.41952]
[1728045317387,3.2078,2384.7,2383.8,3.2078]
[1728045317690,8.14726,2384.4,2383.8,3.2078]
[1728045317886,4.52,2384.4,2383.8,3.2078]
[1728045318190,0.41948,2384.3,2383.8,3.62734]
[1728045318391,4.93946,2384.4,2383.9,0.41954]
[1728045318586,4.93946,2384.4,2383.8,3.2078]
[1728045318890,3.2078,2384.7,2384.0,0.41952]
[1728045318891,0.41944,2384.5,2384.0,0.41952]
[1728045319091,0.41943,2384.6,2384.1,0.41949]
[1728045319295,3.2078,2384.7,2384.1,3.2078]
[1728045319487,3.2078,2384.7,2384.4,0.41944]
[1728045319685,3.2078,2384.7,2384.1,3.2078]
[1728045319686,1.46766,2385.1,2384.3,0.41946]
[1728045319988,1.46766,2385.1,2384.2,0.41947]
[1728045319989,0.41941,2384.7,2384.2,0.41947]
[1728045320293,0.41941,2384.7,2384.3,0.41946]
[1728045320495,0.41941,2384.7,2384.1,3.2078]
[1728045320496,0.41941,2384.7,2384.2,0.41948]
[1728045320788,4.25617,2385.0,2384.1,3.2078]
[1728045320986,0.41944,2384.5,2384.1,3.2078]
[1728045321391,0.4194,2384.7,2384.1,3.62729]
[1728045321693,4.52,2384.8,2384.1,3.2078]
[1728045321988,0.4539,2385.2,2384.4,3.2078]
[1728045321989,4.9739,2385.2,2384.4,3.2078]
[1728045322187,5.39322,2385.2,2384.7,0.41939]
[1728045322493,4.52,2385.2,2384.4,3.2078]
[1728045322696,0.4193,2385.3,2384.8,0.41938]
[1728045322889,3.2078,2385.4,2384.4,3.2078]
[1728045323195,3.62709,2385.4,2385.0,0.41934]
[1728045323389,0.41923,2385.7,2385.2,0.4193]
[1728045323696,0.4775,2385.8,2385.4,0.41927]
[1728045323697,0.89672,2385.8,2385.4,0.41927]
[1728045323996,4.93914,2386.2,2385.4,0.41927]
[1728045324191,1.52304,2386.5,2385.6,3.2078]